bitfinex-derivatives/quotes_ETHF0:USTF0_20251211
["timestamp","ask_amount","ask_price","bid_price","bid_amount"]
[1765476612626,3.4961,3191.0,3190.9,1.47218]
[1765476612816,3.4961,3191.0,3190.9,0.15668]
[1765476613021,3.4961,3191.0,3190.9,1.47218]
[1765476613326,3.4961,3191.0,3190.9,0.15668]
[1765476619134,3.4961,3191.0,3190.9,2.64928]
[1765476619331,6.5211,3191.5,3191.4,1.1697]
[1765476619532,6.5211,3191.5,3191.4,2.3784]
[1765476619830,3.2078,3191.5,3191.4,2.53505]
[1765476620331,3.2078,3191.5,3191.0,0.5199]
[1765476620332,0.00787091,3191.6,3191.5,2.53505]
[1765476621637,2.48267091,3191.6,3191.5,1.32635]
[1765476621837,2.4748,3190.9,3190.8,0.15668]
[1765476622031,2.4748,3190.9,3190.8,1.32638]
[1765476622541,2.4748,3190.9,3190.8,0.15668]
[1765476623739,2.4748,3190.9,3190.8,1.32638]
[1765476623938,2.4748,3190.9,3190.8,0.15668]
[1765476625432,2.4748,3190.9,3190.8,2.53508]
[1765476625938,2.4748,3190.9,3190.8,1.32638]
[1765476626137,2.4748,3190.9,3190.8,0.15668]
[1765476626535,2.4748,3190.9,3190.8,1.32638]
[1765476626742,2.4748,3190.9,3190.8,0.15668]
[1765476629346,2.4748,3190.9,3190.8,1.32638]
[1765476629640,2.4748,3190.9,3190.8,2.53508]
[1765476631540,3.2078,3191.2,3191.1,2.3784]
[1765476631744,1.9868,3191.5,3191.4,2.53505]
[1765476631944,3.2198,3191.5,3191.4,2.53505]
[1765476632539,3.2198,3191.5,3191.4,1.32635]
[1765476632944,3.2198,3191.5,3191.4,2.53505]
[1765476633246,1.9868,3191.5,3191.4,2.53505]
[1765476634045,3.2198,3191.5,3191.4,1.32635]
[1765476634641,3.2198,3191.5,3191.4,0.15665]
[1765476634851,2.4748,3190.9,3190.8,5.74288]
[1765476635050,0.745,3191.0,3190.9,2.53508]
[1765476635250,1.9868,3191.0,3190.9,2.53508]
[1765476635641,3.21567091,3191.6,3191.5,1.1697]
[1765476635856,2.48267091,3191.6,3191.5,0.15665]
[1765476636058,5.69047091,3191.6,3191.5,0.15665]
[1765476636257,5.69047091,3191.6,3191.5,1.32635]
[1765476637759,5.69047091,3191.6,3191.5,2.53505]
[1765476638163,1.24967091,3191.6,3191.5,2.53505]
[1765476638667,2.48267091,3191.6,3191.5,1.32635]
[1765476638967,2.48267091,3191.6,3191.5,0.15665]
[1765476639667,2.48267091,3191.6,3191.5,1.32635]
[1765476640361,2.48267091,3191.6,3191.5,0.15665]
[1765476640864,1.24967091,3191.6,3191.5,2.53505]
[1765476641462,0.00787091,3191.6,3191.5,2.53505]
[1765476641662,5.6826,3192.4,3192.3,2.53501]
[1765476642054,2.159,3192.5,3192.4,2.535]
[1765476642258,3.2078,3192.8,3192.7,2.53499]
[1765476642662,3.2198,3193.0,3192.9,2.3784]
[1765476642968,2.4748,3192.8,3192.7,2.53816174]
[1765476643465,2.4748,3192.8,3192.7,1.32946174]
[1765476644470,1.99078042,3193.0,3192.9,2.53498]
[1765476644664,0.00398042,3193.0,3192.9,2.53498]
[1765476644865,0.00398042,3193.0,3192.9,2.78628297]
[1765476645067,3.22378042,3193.0,3192.9,0.15658]
[1765476645868,0.00398042,3193.0,3192.9,2.53498]
[1765476646270,1.99078042,3193.0,3192.9,2.53498]
[1765476647264,3.22378042,3193.0,3192.9,2.53498]
[1765476647659,0.00398042,3193.0,3192.9,2.53498]
[1765476647980,0.00469917,3193.1,3193.0,2.53497]
[1765476648471,2.47949917,3193.1,3193.0,0.15657]
[1765476648966,2.48200123,3193.1,3193.0,0.15657]
[1765476650068,2.48200123,3193.1,3193.0,1.32627]
[1765476650265,2.48200123,3193.1,3193.0,0.15657]
[1765476651572,2.48200123,3193.1,3192.7,0.00317174]
[1765476651573,2.2173,3192.8,3192.7,0.00317174]
[1765476652875,2.2173,3191.9,3191.8,0.15663]
[1765476653670,2.2173,3191.9,3191.8,0.16015496]
[1765476655572,1.1245,3191.9,3191.8,1.22525496]
[1765476655773,2.2173,3191.9,3191.8,1.22525496]
[1765476655972,2.2173,3191.9,3191.8,0.16015496]
[1765476658475,2.2173,3191.9,3190.0,0.4218]
[1765476658476,2.2173,3191.2,3191.1,0.15667]
[1765476658880,2.8795,3191.0,3190.9,3.2078]
[1765476659872,1.755,3191.0,3190.5,3.3645]
[1765476660079,2.2173,3190.6,3190.5,3.3645]
[1765476660278,2.22002739,3190.6,3190.5,3.3645]
[1765476660478,2.22002739,3190.6,3190.5,3.2078]
[1765476661877,2.22002739,3190.6,3189.5,0.4821]
[1765476661878,2.2173,3190.0,3189.5,3.8669]
[1765476662184,2.2173,3189.7,3189.6,2.34634]
[1765476662385,1.1245,3189.7,3189.6,2.34634]
[1765476662777,4.3323,3190.0,3189.9,1.0651]
[1765476662985,3.2078,3190.4,3190.3,2.34631]
[1765476663589,0.00272739,3190.6,3190.5,3.0054]
[1765476669891,1.12722739,3190.6,3190.5,3.0054]
[1765476670392,0.00272739,3190.6,3190.5,3.0054]
[1765476671495,2.22002739,3190.6,3190.5,0.1567]
[1765476672495,2.22002739,3190.6,3190.5,1.2218]
[1765476672895,2.22002739,3190.6,3190.5,0.1567]
[1765476674390,2.22002739,3190.6,3190.0,0.6591]
[1765476674391,2.3342,3190.1,3190.0,1.84]
[1765476674594,3.2078,3190.3,3190.2,2.50271]
[1765476674896,5.5357,3190.3,3190.2,2.50271]
[1765476675694,5.5357,3190.3,3190.2,0.15671]
[1765476676398,3.2078,3190.3,3190.2,2.50271]
[1765476676696,5.5357,3190.3,3190.2,0.15671]
[1765476677592,5.5357,3190.3,3189.6,0.15674]
[1765476677593,4.4175,3190.3,3189.6,0.15674]
[1765476677797,4.4175,3190.3,3189.7,2.50274]
[1765476677798,2.3279,3189.8,3189.7,2.50274]
[1765476678600,2.3279,3189.8,3189.7,1.33764]
[1765476678800,2.3279,3189.8,3189.7,0.15674]
[1765476679200,4.326,3189.8,3189.7,1.30064]
[1765476679393,5.4635,3189.8,3189.7,1.30064]
[1765476679594,5.4635,3189.8,3189.7,0.15674]
[1765476680697,5.4635,3189.8,3189.0,3.6025]
[1765476680996,0.00469917,3189.7,3189.4,0.15675]
[1765476681202,2.2359,3189.5,3189.4,0.15675]
[1765476682201,1.0984,3189.5,3189.4,2.39945]
[1765476682508,0.00469917,3189.7,3189.6,2.39944]
[1765476683006,1.10309917,3189.7,3189.6,2.39944]
[1765476683702,0.00469917,3189.7,3189.6,2.39944]
[1765476689706,1.10309917,3189.7,3189.6,2.39944]
[1765476690102,0.00469917,3189.7,3189.6,2.39944]
[1765476690407,5.44642739,3190.6,3190.5,2.2427]
[1765476690611,6.46720314,3190.6,3190.5,2.2427]
[1765476690902,5.32970314,3190.6,3190.5,2.3994]
[1765476691101,3.21052739,3190.6,3190.5,2.3994]
[1765476691507,5.44642739,3190.6,3190.5,2.3994]
[1765476691804,3.21052739,3190.6,3190.5,2.3994]
[1765476692603,4.30892739,3190.6,3190.5,2.3994]
[1765476693198,5.44642739,3190.6,3190.5,2.3994]
[1765476693401,5.44642739,3190.6,3190.5,0.1567]
[1765476693701,5.44642739,3190.6,3190.5,1.3006]
[1765476695005,5.44642739,3190.6,3190.5,0.1567]
[1765476696309,5.44642739,3190.6,3190.2,0.16140917]
[1765476696310,2.2359,3190.3,3190.2,0.16140917]
[1765476698405,1.8132,3190.5,3190.2,0.00469917]
[1765476698605,2.9507,3190.5,3190.4,2.3994]
[1765476698807,3.97193146,3190.5,3190.4,2.3994]
[1765476699208,1.02123146,3190.5,3190.4,2.3994]
[1765476699406,3.21052739,3190.6,3190.5,2.3994]
[1765476699712,5.33040765,3190.6,3190.5,2.3994]
[1765476701503,6.46790765,3190.6,3190.5,2.3994]
[1765476701703,6.46790765,3190.6,3190.5,1.3006]
[1765476701899,6.46790765,3190.6,3190.5,0.1567]
[1765476702716,5.44642739,3190.6,3190.5,2.3994]
[1765476703015,4.30892739,3190.6,3190.5,2.3994]
[1765476703706,5.44642739,3190.6,3190.5,2.3994]
[1765476703912,0.00272739,3190.6,3190.5,2.3994]
[1765476704113,0.00272739,3190.6,3190.5,3.0455]
[1765476704316,0.00469917,3190.9,3190.8,2.39938]
[1765476705212,2.24447752,3190.9,3190.8,1.30340052]
[1765476705407,2.24447752,3190.9,3190.8,2.40220052]
[1765476705914,1.10697752,3190.9,3190.8,2.40220052]
[1765476706802,2.24447752,3190.9,3190.8,0.15950052]
[1765476709814,2.24447752,3190.9,3190.8,1.30340052]
[1765476710916,2.24447752,3190.9,3190.8,0.15950052]
[1765476714805,2.24447752,3190.9,3190.8,1.36980052]
[1765476716017,2.24447752,3190.9,3190.8,0.15950052]
[1765476716711,3.8813075,3190.9,3190.8,0.15950052]
[1765476718713,2.24447752,3190.9,3190.8,2.57610052]
[1765476719416,1.10697752,3190.9,3190.8,2.57610052]
[1765476719616,0.00857752,3190.9,3190.8,2.57610052]
[1765476721426,1.8128,3192.0,3191.9,2.4166]
[1765476721721,2.3644,3192.1,3192.0,0.15662]
[1765476722132,3.2078,3192.3,3192.2,2.4166]
[1765476722133,4.3933,3192.3,3192.2,2.4166]
[1765476722317,4.39659127,3192.3,3192.2,2.57321]
[1765476722517,3.21109127,3192.3,3192.2,2.57321]
[1765476723522,0.00329127,3192.3,3192.2,2.57321]
[1765476725219,1.18879127,3192.3,3192.2,2.57321]
[1765476725524,2.36769127,3192.3,3192.2,2.57321]
[1765476725926,1.18879127,3192.3,3192.2,2.57321]
[1765476727824,0.00329127,3192.3,3192.2,2.57321]
[1765476729823,1.18879127,3192.3,3192.2,2.57321]
[1765476730423,2.36769127,3192.3,3192.2,0.15661]
[1765476731524,2.36769127,3192.3,3192.2,1.36691]
[1765476731728,2.36769127,3192.3,3192.2,0.15661]
[1765476731928,0.00329127,3192.3,3192.2,2.57321]
[1765476732129,1.18879127,3192.3,3192.2,2.57321]
[1765476733030,0.00329127,3192.3,3192.2,2.57321]
[1765476733229,1.9229,3193.0,3192.9,2.57318]
[1765476733423,0.7374,3193.0,3192.9,2.57318]
[1765476733621,3.9452,3193.5,3192.6,3.2078]
[1765476733622,2.3644,3193.3,3193.2,1.36686]
[1765476734020,7.31293264,3194.1,3193.8,1.36683]
[1765476734021,5.5722,3193.9,3193.8,1.36683]
[1765476734226,2.36718941,3193.9,3193.8,1.36990756]
[1765476734640,5.57498941,3193.9,3193.8,0.15960756]
[1765476734846,2.3644,3193.6,3193.5,0.00469917]
[1765476735143,2.3644,3193.6,3193.5,1.37154917]
[1765476735535,2.3644,3193.6,3193.5,0.16124917]
[1765476735944,2.3644,3193.6,3193.5,0.16460706]
[1765476739949,2.3644,3193.6,3193.5,1.25230706]
[1765476740150,2.3644,3193.6,3193.5,2.33950706]
[1765476740349,1.1288,3193.6,3193.5,2.33950706]
[1765476740549,2.237,3193.6,3193.5,2.33950706]
[1765476742150,5.44758941,3193.9,3193.8,1.1052]
[1765476742450,0.00278941,3193.9,3193.8,2.34894]
[1765476742755,2.23978941,3193.9,3193.8,1.26174]
[1765476742954,2.23978941,3193.9,3193.8,2.34894]
[1765476743457,1.13158941,3193.9,3193.8,2.34894]
[1765476743651,0.00278941,3193.9,3193.8,2.34894]
[1765476744753,3.2078,3194.8,3194.3,0.15651]
[1765476744952,2.9744,3194.5,3194.4,1.1052]
[1765476745152,2.9744,3194.5,3194.4,2.1924]
[1765476745354,5.4448,3194.8,3194.7,1.1052]
[1765476746049,5.44848127,3194.8,3194.7,1.1052]
[1765476746453,5.44848127,3194.8,3194.7,1.26169]
[1765476746854,5.44848127,3194.8,3194.7,0.15649]
[1765476747153,2.237,3194.2,3194.1,4.313]
[1765476747854,0.6768,3194.5,3194.4,1.1052]
[1765476748058,1.8056,3194.5,3194.4,2.34891]
[1765476748447,0.6768,3194.5,3194.4,2.34891]
[1765476748648,3.21148127,3194.8,3194.7,2.34889]
[1765476748649,5.44848127,3194.8,3194.7,2.34889]
[1765476749155,1.68400864,3195.8,3195.7,0.15644]
[1765476749354,2.237,3195.8,3195.7,2.34884]
[1765476749654,0.6768,3196.5,3195.8,0.15643]
[1765476749851,1.8056,3196.0,3195.9,2.1924]
[1765476750047,0.6768,3196.5,3196.1,0.15642]
[1765476750251,1.80820755,3196.5,3196.4,2.1924]
[1765476750552,0.00260755,3196.5,3196.4,2.34881]
[1765476751755,2.91640755,3196.5,3196.4,0.15641]
[1765476752052,2.91640755,3196.5,3196.4,1.26161]
[1765476752358,2.91640755,3196.5,3196.4,2.34881]
[1765476752359,0.00260755,3196.5,3196.4,2.34881]
[1765476753046,2.91640755,3196.5,3196.4,1.26161]
[1765476753753,2.91640755,3196.5,3196.4,0.15641]
[1765476754455,2.237,3196.3,3196.2,4.313]
[1765476754658,2.237,3196.3,3196.2,3.2078]
[1765476755948,1.1288,3196.3,3196.2,4.313]
[1765476756156,2.237,3196.3,3196.2,4.313]
[1765476756462,2.91640755,3196.5,3196.4,1.1052]
[1765476756656,1.67444287,3196.5,3196.4,2.1924]
[1765476756852,0.00260755,3196.5,3196.4,2.1924]
[1765476757555,0.00260755,3196.5,3196.4,2.34881]
[1765476757750,0.99751811,3196.5,3196.4,2.34881]
[1765476757954,3.91131811,3196.5,3196.4,1.26161]
[1765476758657,3.91131811,3196.5,3196.4,0.15641]
[1765476760255,2.237,3196.2,3196.1,0.00330611]
[1765476760461,2.237,3195.6,3195.5,0.15645]
[1765476760661,3.23191056,3195.6,3195.5,0.15645]
[1765476761462,2.237,3194.8,3194.7,0.15649]
[1765476761654,3.23191056,3194.8,3194.7,1.26499187]
[1765476762757,3.23191056,3194.8,3194.7,2.35219187]
[1765476762959,2.12371056,3194.8,3194.7,2.35219187]
[1765476763662,0.99491056,3194.8,3194.7,2.35219187]
[1765476765266,4.3366,3195.3,3195.2,1.1052]
[1765476765459,6.44172455,3195.3,3195.2,1.1052]
[1765476765860,2.12572455,3195.3,3195.2,2.1924]
[1765476766158,3.23392455,3195.3,3195.2,1.1052]
[1765476766360,2.237,3195.1,3195.0,3.2078]
[1765476766564,2.237,3194.8,3194.7,1.26499187]
[1765476766864,3.23392455,3194.8,3194.7,1.26499187]
[1765476767264,0.99692455,3194.8,3194.7,2.35219187]
[1765476768159,3.23392455,3194.8,3194.7,1.26499187]
[1765476770163,3.23392455,3194.8,3194.7,0.15979187]
[1765476770468,2.237,3194.8,3194.7,0.15979187]
[1765476772068,3.17577863,3194.8,3194.7,0.15979187]
[1765476772267,3.17632558,3194.8,3194.7,0.15979187]
[1765476773262,3.17710613,3194.8,3194.7,0.15979187]
[1765476773760,0.6768,3195.0,3194.7,2.13159187]
[1765476773965,2.34090826,3195.5,3194.7,2.13159187]
[1765476773966,2.0241,3195.4,3195.3,1.17876]
[1765476774268,2.96431313,3195.4,3195.3,1.17876]
[1765476774659,2.96431313,3195.4,3195.3,2.12826]
[1765476774860,0.6768,3195.5,3195.4,2.12826]
[1765476775066,2.7009,3196.0,3195.9,1.0223]
[1765476775267,3.64156916,3196.0,3195.9,1.0223]
[1765476775464,2.61836916,3196.0,3195.9,1.9718]
[1765476775668,0.6768,3196.0,3195.9,2.12823]
[1765476775868,2.7009,3196.0,3195.9,1.17873]
[1765476776070,2.7009,3196.0,3195.9,0.15643]
[1765476776472,3.64211436,3196.0,3195.9,0.15643]
[1765476777875,2.599,3195.5,3195.4,3.36426]
[1765476779075,1.5758,3195.5,3195.4,4.38656]
[1765476779272,2.599,3195.5,3195.4,4.38656]
[1765476780371,2.7009,3196.0,3195.9,0.15643]
[1765476780567,3.64332652,3196.0,3195.9,0.15643]
[1765476781479,2.7009,3196.0,3195.9,0.15643]
[1765476782482,1.6777,3196.0,3195.9,2.12823]
[1765476782674,2.7009,3196.0,3195.9,1.17873]
[1765476782873,2.7009,3196.0,3195.9,0.15643]
[1765476784573,2.7009,3196.0,3195.9,1.17873]
[1765476784779,0.6768,3196.0,3195.9,2.12823]
[1765476785275,1.6777,3196.0,3195.9,2.12823]
[1765476785580,0.6768,3196.0,3195.9,2.12823]
[1765476786081,0.67940755,3196.5,3196.4,1.17871]
[1765476786082,2.70350755,3196.5,3196.4,1.17871]
[1765476786381,0.00260755,3196.5,3196.4,2.12821]
[1765476786879,0.00260755,3196.5,3196.4,2.37380054]
[1765476787076,0.00260755,3196.5,3196.4,2.12821]
[1765476787481,0.00260755,3196.5,3196.4,2.3779886]
[1765476787677,0.00260755,3196.5,3196.4,2.12821]
[1765476792081,1.57840755,3196.5,3196.4,2.12821]
[1765476792487,0.57750755,3196.5,3196.4,2.12821]
[1765476793181,0.00260755,3196.5,3196.4,2.12821]
[1765476794288,0.58160755,3196.5,3196.4,2.12821]
[1765476794490,0.00260755,3196.5,3196.4,2.12821]
[1765476795188,5.669,3197.5,3197.4,1.12356]
[1765476795389,5.669,3197.5,3197.4,0.15636]
[1765476795978,2.4612,3197.5,3197.4,2.02486]
[1765476796178,1.50513703,3197.5,3197.4,2.02718117]
[1765476796390,2.46383703,3197.5,3197.4,2.02718117]
[1765476796590,2.46383703,3197.5,3197.4,1.12588117]
[1765476796884,2.46383703,3197.5,3197.4,0.15868117]
[1765476797685,5.67163703,3197.5,3197.4,0.15868117]
[1765476798492,1.8863,3196.8,3196.7,4.175]
[1765476798688,1.4588,3197.0,3196.9,2.00988]
[1765476798889,2.4065,3197.0,3196.9,1.07268]
[1765476799588,2.4065,3197.0,3196.9,0.16007091]
[1765476800793,2.4065,3197.0,3196.9,1.07637091]
[1765476800992,3.78533703,3197.5,3196.9,1.07637091]
[1765476800993,5.61283703,3197.5,3197.4,1.07266]
[1765476801592,5.61283703,3197.5,3197.4,0.15636]
[1765476801795,5.61283703,3197.5,3197.4,1.07266]
[1765476802289,2.40503703,3197.5,3197.4,2.00986]
[1765476802496,1.45733703,3197.5,3197.4,2.00986]
[1765476802687,2.40503703,3197.5,3197.4,2.00986]
[1765476802889,2.40503703,3197.5,3197.4,0.15636]
[1765476803490,1.41353703,3197.5,3197.4,2.00986]
[1765476804086,0.00263703,3197.5,3197.4,2.00986]
[1765476804595,1.41353703,3197.5,3197.4,2.00986]
[1765476804792,1.12809205,3198.8,3197.1,3.2078]
[1765476804793,2.4065,3198.5,3197.5,0.4951]
[1765476804998,1.8275,3198.2,3198.1,5.21763]
[1765476805291,0.8798,3198.2,3198.1,5.21763]
[1765476805893,1.8308422,3198.2,3198.1,3.36413]
[1765476806396,0.0033422,3198.2,3198.1,5.21763]
[1765476808893,0.0030893,3198.5,3198.4,2.00981]
[1765476809091,3.7389,3199.5,3199.4,0.15626]
[1765476809400,5.5664,3199.5,3199.4,0.15626]
[1765476810294,5.56885056,3199.5,3199.4,0.15903542]
[1765476810796,0.8798,3198.8,3198.7,5.0613]
[1765476811692,0.5311,3199.0,3198.9,2.00979]
[1765476812300,2.3586,3199.0,3198.9,1.07259]
[1765476812603,0.5311,3199.0,3198.9,2.00979]
[1765476812902,2.3586,3199.0,3198.9,0.15629]
[1765476813604,2.3586,3199.0,3198.9,1.07259]
[1765476813799,2.3586,3199.0,3198.9,0.15629]
[1765476814303,1.4109,3199.0,3198.9,2.00979]
[1765476814704,2.3586,3199.0,3198.9,2.00979]
[1765476814897,2.3586,3199.0,3198.9,1.07259]
[1765476815098,2.3586,3199.0,3198.9,3.36409]
[1765476815794,0.5311,3199.0,3198.9,5.21759]
[1765476816206,2.36105056,3199.5,3199.4,0.15626]
[1765476818404,3.34789886,3199.5,3199.4,0.15626]
[1765476818707,2.36105056,3199.5,3199.4,0.15626]
[1765476819507,3.34786931,3199.5,3199.4,0.15626]
[1765476824513,1.8275,3198.8,3198.7,0.15991169]
[1765476824720,2.81431875,3198.8,3198.7,0.15991169]
[1765476825316,0.98681875,3198.8,3198.7,1.07621169]
[1765476825512,2.81566151,3198.8,3198.7,2.01341169]
[1765476825714,2.81566151,3198.8,3198.7,0.15991169]
[1765476827015,0.8798,3198.8,3198.7,2.01341169]
[1765476827416,0.5311,3199.0,3198.9,2.00979]
[1765476828018,4.0876,3199.2,3199.1,2.00978]
[1765476828213,2.36105056,3199.5,3199.4,1.07256]
[1765476828415,3.34954487,3199.5,3199.4,1.07256]
[1765476829318,3.34954487,3199.5,3199.4,2.00976]
[1765476829518,0.00245056,3199.5,3199.4,4.35406955]
[1765476829722,2.2823,3200.0,3199.9,0.99364]
[1765476829913,2.2823,3200.0,3199.9,0.15624]
[1765476830116,6.46684961,3200.0,3199.9,0.15624]
[1765476830817,1.7512,3199.7,3199.6,0.00469124]
[1765476831024,2.72794961,3199.7,3199.6,0.00469124]
[1765476832233,1.7512,3199.6,3199.5,0.15626]
[1765476832419,5.93574961,3199.6,3199.5,0.15626]
[1765476832623,1.7512,3198.9,3198.8,4.0452]
[1765476832822,1.7512,3198.9,3198.8,4.20149]
[1765476833227,1.7512,3198.9,3198.8,3.36409]
[1765476833430,2.72569212,3198.9,3198.8,3.36409]
[1765476834929,2.72569212,3198.9,3198.8,4.20149]
[1765476835429,2.72670581,3198.9,3198.8,3.36409]
[1765476836229,1.7512,3198.9,3198.8,3.36409]
[1765476836531,2.72700262,3198.9,3198.8,3.36409]
[1765476837228,2.72700262,3198.9,3198.8,4.20149]
[1765476837428,1.7512,3198.9,3198.8,4.20149]
[1765476837732,1.7512,3198.9,3198.8,3.36409]
[1765476837926,2.72720426,3198.9,3198.8,3.36409]
[1765476838132,2.72720426,3198.9,3198.8,2.36409]
[1765476839630,2.72720426,3198.9,3198.8,0.15629]
[1765476840033,1.7512,3198.8,3198.7,0.00361169]
[1765476840231,1.7512,3198.8,3198.3,0.15631]
[1765476840232,1.7512,3198.4,3198.3,0.15631]
[1765476840431,2.72720426,3198.4,3198.3,0.15631]
[1765476841334,2.72720426,3198.4,3198.3,0.1599339]
[1765476842433,1.7512,3198.1,3198.0,0.00469124]
[1765476842737,1.7512,3197.8,3197.7,1.85764]
[1765476842926,1.7512,3197.8,3197.7,0.99374]
[1765476843130,1.3865,3198.0,3197.9,1.85764]
[1765476843331,0.5219,3198.0,3197.9,1.85764]
[1765476843536,3.7297,3198.5,3198.0,1.7013]
[1765476843831,2.2731,3198.0,3197.9,1.86102331]
[1765476844037,2.2731,3198.0,3197.9,0.99712331]
[1765476844431,2.2731,3198.0,3197.9,1.86102331]
[1765476844832,2.2731,3198.0,3197.9,0.99712331]
[1765476845035,2.2731,3198.0,3197.9,0.15972331]
[1765476845236,1.7512,3197.7,3197.6,0.00469124]
[1765476846239,4.96296603,3197.7,3197.6,0.00780718]
[1765476846839,2.2731,3197.5,3197.4,0.15636]
[1765476847045,2.2731,3197.5,3197.4,1.85766]
[1765476847547,2.2731,3197.5,3197.4,0.99376]
[1765476848042,2.2731,3197.5,3197.4,0.15636]
[1765476848840,2.2731,3197.5,3197.4,0.99376]
[1765476849145,2.2731,3197.5,3197.4,0.15636]
[1765476853145,1.7512,3197.2,3197.1,0.00469124]
[1765476854150,1.6724,3196.9,3196.8,0.15639]
[1765476854454,1.6724,3196.9,3196.8,1.87739]
[1765476854753,1.3642,3197.0,3196.9,1.87738]
[1765476855143,2.2101,3197.0,3196.9,1.87738]
[1765476855345,2.2101,3197.0,3196.9,0.97518]
[1765476855849,4.8802,3197.3,3197.2,0.97517]
[1765476856149,4.8802,3197.3,3197.2,1.87737]
[1765476856351,3.2078,3197.3,3197.2,1.87737]
[1765476857048,4.0343,3197.3,3197.2,1.87737]
[1765476857748,3.2078,3197.3,3197.2,1.87737]
[1765476858449,4.0343,3197.3,3197.2,1.87737]
[1765476858851,4.8802,3197.3,3197.2,1.87737]
[1765476859049,4.8802,3197.3,3197.2,0.97517]
[1765476859252,4.8802,3197.3,3197.2,0.15637]
[1765476860656,1.7236,3196.7,3196.6,4.24859124]
[1765476860851,1.7236,3196.7,3196.6,3.36889124]
[1765476861453,1.7236,3196.7,3196.6,4.24859124]
[1765476861950,1.7236,3196.7,3196.6,0.16109124]
[1765476863755,1.7236,3196.3,3196.2,3.2078]
[1765476863957,0.519,3196.5,3196.4,0.8797]
[1765476864156,0.519,3196.5,3196.4,1.92401]
[1765476864356,1.3976,3196.5,3196.4,1.92401]
[1765476864553,2.2426,3196.5,3196.4,1.03611]
[1765476865247,2.2426,3196.5,3196.4,0.15641]
[1765476865447,2.2426,3196.5,3195.5,0.321]
[1765476865448,1.7236,3195.8,3195.7,0.15644]
[1765476866256,2.2426,3195.5,3195.4,3.2078]
[1765476866852,1.3976,3195.5,3195.4,5.13186]
[1765476867253,0.519,3195.5,3195.4,5.13186]
[1765476867560,2.2426,3195.5,3195.4,1.03616]
[1765476868649,2.2426,3195.5,3195.4,0.15646]
[1765476868850,2.2426,3195.5,3195.4,0.13741416]
[1765476869158,1.7236,3195.1,3195.0,3.2078]
[1765476869652,1.72589875,3195.1,3195.0,3.2078]
[1765476869849,1.72589875,3195.1,3194.8,0.15648]
[1765476869850,1.7236,3194.9,3194.8,0.15648]
[1765476870246,1.7236,3194.9,3194.8,1.03618]
[1765476870656,1.7236,3194.9,3194.8,0.15648]
[1765476871458,4.9314,3194.9,3194.8,0.15648]
[1765476872866,4.9314,3194.9,3194.8,1.03618]
[1765476874048,0.519,3195.0,3194.9,1.92408]
[1765476874253,0.00229875,3195.1,3195.0,1.92408]
[1765476874861,0.00229875,3195.1,3195.0,5.13188]
[1765476875654,1.72589875,3195.1,3195.0,5.13188]
[1765476875963,1.72589875,3195.1,3195.0,3.36428]
[1765476876558,1.72589875,3195.1,3195.0,4.24398]
[1765476876854,0.00229875,3195.1,3195.0,5.13188]
[1765476877266,0.00229875,3195.1,3195.0,5.59238]
[1765476877668,0.00229875,3195.1,3195.0,5.13188]
[1765476878967,1.7236,3194.7,3194.6,3.2078]
[1765476879267,0.8786,3194.2,3194.1,1.92412]
[1765476880257,1.3976,3194.5,3194.4,1.92411]
[1765476880462,2.2426,3194.5,3194.4,1.92411]
[1765476880665,2.2426,3194.5,3194.4,0.15651]
[1765476883664,0.519,3194.0,3193.9,1.7676]
[1765476883864,0.8786,3194.3,3194.2,1.92411]
[1765476884061,5.4504,3194.5,3194.4,0.15651]
[1765476884262,5.60687781,3194.5,3194.4,1.92411]
[1765476885565,4.6054,3194.5,3194.4,1.92411]
[1765476886269,6.45215505,3194.5,3194.4,1.03621]
[1765476886465,6.45215505,3194.5,3194.4,0.15651]
[1765476891969,6.45215505,3194.5,3193.8,3.2078]
[1765476891970,1.5233,3193.9,3193.8,3.36433]
[1765476893271,0.00469124,3194.8,3194.7,1.66129]
[1765476893464,3.2078,3195.7,3195.1,0.15647]
[1765476893773,1.76003667,3195.4,3195.3,1.66126]
[1765476894164,1.2674,3195.5,3195.4,1.66126]
[1765476894364,2.25290985,3195.5,3195.4,1.66126]
[1765476894566,2.25290985,3195.5,3195.4,1.66355875]
[1765476894861,1.50450985,3195.5,3195.4,1.66355875]
[1765476896377,0.52277162,3195.5,3195.4,1.66355875]
[1765476896778,1.27117162,3195.5,3195.4,1.66355875]
[1765476897273,2.04607162,3195.5,3195.4,1.66355875]
[1765476897578,1.27117162,3195.5,3195.4,1.66355875]
[1765476898678,0.00377162,3195.5,3195.4,1.66355875]
[1765476898877,0.75217162,3195.5,3195.4,1.66355875]
[1765476899778,0.00377162,3195.5,3195.4,1.66355875]
[1765476899981,0.00377162,3195.5,3195.4,4.87135875]
[1765476900383,1.9868,3196.5,3196.4,0.90521]
[1765476901077,1.9868,3196.5,3196.4,0.15641]
[1765476901278,1.98990071,3196.5,3196.4,0.15641]
[1765476904788,1.98990071,3196.5,3196.4,1.66121]
[1765476905182,1.21500071,3196.5,3196.4,1.66121]
[1765476905381,1.98990071,3196.5,3196.4,1.66121]
[1765476906087,1.98990071,3196.5,3196.4,0.15641]
[1765476906890,1.98990071,3196.5,3196.4,0.90521]
[1765476907293,1.98990071,3196.5,3196.4,0.15641]
[1765476908191,1.98990071,3196.5,3196.4,0.90521]
[1765476908491,1.98990071,3196.5,3196.4,0.15641]
[1765476909292,1.5233,3196.1,3196.0,3.2078]
[1765476909693,1.5233,3196.1,3196.0,3.36423]
[1765476909899,1.5233,3196.1,3195.5,3.2078]
[1765476910094,3.2078,3196.2,3195.5,3.2078]
[1765476910095,1.5233,3195.6,3195.5,3.36425]
[1765476910899,1.5233,3195.6,3195.5,0.15645]
[1765476911289,1.5233,3195.6,3195.4,0.00229875]
[1765476911290,1.9868,3195.5,3195.4,0.00229875]
[1765476911489,1.9868,3195.5,3195.4,0.90755875]
[1765476911691,1.9868,3195.5,3195.4,1.66355875]